[Event "Fagernes Chess GM-Swiss 2024"]
[Site "Fagernes"]
[Date "2024.03.27"]
[Round "5.33"]
[White "Shivika Rohilla"]
[Black "Shehzad, Shazil"]
[Result "0-1"]
[ECO "A13"]
[WhiteElo "2003"]
[BlackElo "2301"]
[Annotator "RC"]
[PlyCount "66"]
[EventDate "2024.03.25"]
[EventType "swiss"]
[EventCountry "NOR"]
[SourceTitle "playchess.com"]
[Source "ChessBase"]
[SourceQuality "1"]
[TimeControl "40/6000+30:2400+30"]

1. Nf3 {[%emt 0:02:36]} Nf6 {[%emt 0:00:18]} 2. c4 {[%emt 0:00:15]} e6 {[%emt 0:00:17]} 3. g3 {[%emt 0:00:10]} d5 {[%emt 0:00:23]} 4. Bg2 {[%emt 0:00:08]} d4 {[%emt 0:00:54]} 5. O-O {[%emt 0:00:09]} c5 {[%emt 0:00:42]} 6. e3 {[%emt 0:00:15]} Nc6 {[%emt 0:00:01]} 7. exd4 {[%emt 0:00:08]} cxd4 {[%emt 0:00:00]} 8. d3 {[%emt 0:00:09]} h6 {[%emt 0:00:01]} 9. Na3 {[%emt 0:00:24]} Bxa3 {[%emt 0:00:30]} 10. bxa3 {[%emt 0:00:07]} O-O {[%emt 0:01:21]} 11. Rb1 {[%emt 0:00:45]} e5 {[%emt 0:01:50]} 12. Re1 {[%emt 0:05:32]} Qc7 {[%emt 0:03:27]} 13. a4 {[%emt 0:16:33]} Re8 {[%emt 0:06:21]} 14. Nd2 {[%emt 0:12:53]} Bf5 {[%emt 0:01:23]} 15. Qe2 {[%emt 0:07:21]} Rab8 {[%emt 0:05:45]} 16. Nb3 {[%emt 0:01:39]} Nb4 {[%emt 0:09:40]} 17. Rd1 {[%emt 0:02:07]} Nxd3 {[%emt 0:00:17]} 18. Rxd3 {[%emt 0:02:54]} Qxc4 {[%emt 0:02:21]} 19. Bf1 {[%emt 0:00:07]} Qxa4 {[%emt 0:04:20]} 20. Rb2 {[%emt 0:06:48]} Bxd3 {[%emt 0:02:27]} 21. Qxd3 {[%emt 0:00:08]} Rbc8 {[%emt 0:02:24]} 22. Qf5 {[%emt 0:02:32]} Qd7 {[%emt 0:03:30]} 23. Qb1 {[%emt 0:03:23]} b6 {[%emt 0:04:06]} 24. Rd2 {[%emt 0:02:23]} Nd5 {[%emt 0:03:08]} 25. Qe4 {[%emt 0:01:35]} Nc3 {[%emt 0:00:50]} 26. Qh4 {[%emt 0:00:13]} Qa4 {[%emt 0:01:41]} 27. Rd3 {[%emt 0:14:27]} Qc6 {[%emt 0:07:10]} 28. f4 {[%emt 0:04:30]} e4 {[%emt 0:06:47]} 29. Nxd4 {[%emt 0:07:18]} Qc5 {[%emt 0:02:49]} 30. f5 {[%emt 0:05:12]} exd3 {[%emt 0:00:33]} 31. Bxh6 {[%emt 0:00:22]} Ne2+ {[%emt 0:00:38]} 32. Bxe2 {[%emt 0:00:32]} dxe2 {[%emt 0:00:28]} 33. Bxg7 {[%emt 0:00:14]} Qc1+ {[%emt 0:00:08]} 0-1

[Event "Fagernes Chess GM-Swiss 2024"]
[Site "Fagernes"]
[Date "2024.03.27"]
[Round "5.34"]
[White "Prraneeth Vuppala"]
[Black "Vijayakumar, Rishi"]
[Result "1-0"]
[ECO "E06"]
[WhiteElo "2506"]
[BlackElo "2156"]
[Annotator "TA"]
[PlyCount "83"]
[EventDate "2024.03.25"]
[EventType "swiss"]
[EventCountry "NOR"]
[SourceTitle "playchess.com"]
[Source "ChessBase"]
[SourceQuality "1"]
[TimeControl "40/6000+30:2400+30"]

{[%evp 11,83,24,27,20,40,30,34,30,21,39,39,29,16,14,22,25,79,55,93,82,85,77,82,86,137,125,144,135,145,133,189,198,363,235,204,195,191,192,225,186,357,336,519,512,546,541,547,547,524,502,1062,731,806,799,891,877,899,878,895,886,932,921,1706,1397,5322,5314,29974,29968,29983,29984,29986,29985,29996,29997]} 1. d4 {[%emt 0:08:59]} Nf6 {[%emt 0:00:13]} 2. c4 {[%emt 0:00:04]} e6 {[%emt 0:00:10]} 3. Nf3 {[%emt 0:00:02]} d5 {[%emt 0:00:11]} 4. g3 {[%emt 0:00:05]} Be7 {[%emt 0:00:08]} 5. Bg2 {[%emt 0:00:04]} O-O {[%emt 0:00:10]} 6. O-O {[%emt 0:00:12]} a5 {[%emt 0:00:52][%cal Ba7a5,Ba5a4][%mdl 32]} 7. Qc2 {[%emt 0:00:19]} Nc6 {[%emt 0:00:13][%cal Bb8c6,Bc6a5,Ba5b3][%mdl 32]} 8. a3 {[%emt 0:00:13]} dxc4 {[%emt 0:00:08]} 9. Rd1 {[%emt 0:00:09] White is slightly better.} Bd7 {[%emt 0:03:45]} 10. Qxc4 {[%emt 0:00:05]} a4 {[%emt 0:00:04]} 11. Qc2 {[%emt 0:01:04]} Na5 {[%emt 0:09:03]} 12. Nc3 {[%emt 0:00:09][%cal Oa1b1]} Nb3 {[%emt 0:05:47]} 13. Rb1 {[%emt 0:00:04]} Bc6 {[%emt 0:02:57]} (13... Nd5 $11 {remains equal.}) 14. e4 $16 {[%emt 0:00:10][%cal Be2e4,Be4e5][%mdl 32]} Nxc1 {[%emt 0:18:42] Black is on the road to losing.} 15. Rbxc1 {[%emt 0:00:07]} Ra5 {[%emt 0:03:37]} 16. Ne5 {[%emt 0:00:37]} Be8 {[%emt 0:00:57]} 17. Nc4 {[%emt 0:00:42][%cal Be5c4,Bc4e3,Be3f5][%mdl 32]} Ra7 {[%emt 0:00:46] [#]} (17... Ra6 $142) 18. Ne3 $1 {[%emt 0:00:14] e5 would now be deadly.} c5 {[%emt 0:21:09] [#]} 19. e5 $1 {[%emt 0:01:08]} Nd7 {[%emt 0:02:22]} 20. d5 {[%emt 0:00:29] And now d6 would win. White has more active pieces. The black rooks are passive.} (20. Nxa4 cxd4 21. Rxd4 b5 $11) 20... Nxe5 {[%emt 0:00:57]} (20... Qb8 $16) 21. dxe6 $18 {[%emt 0:00:06]} Qc8 {[%emt 0:01:09]} (21... Qb8 {was worth a try.}) 22. Ncd5 {[%emt 0:01:38][%cal Bc3d5,Bd5f4,Bf4e6][%mdl 32]} (22. f4 Nc6 $16) 22... Qxe6 {[%emt 0:00:41]} 23. Nf5 {[%emt 0:02:58]} Bd8 {[%emt 0:05:57]} 24. Nf4 {[%emt 0:02:30][%mdl 1024] White has strong compensation. A dynamic duo of knights.} (24. Qxc5 $6 b6 25. Qc2 Bd7 $16) 24... Qb6 {[%emt 0:04:17]} 25. Rd6 $36 {[%emt 0:04:39][%mdl 2048] White is really pushing.} Bc6 $2 {[%emt 0:03:07]} (25... Qa5 26. Nh5 (26. Qxc5 Bd7 $16) 26... Ra6) 26. Qc3 {[%emt 0:07:49]} (26. Qxc5 Qxb2 27. Rdd1 Bb6 28. Ne7+ Kh8 $18) 26... f6 {[%emt 0:06:49]} (26... Re8 $142 27. Nh5 (27. Qxc5 Qxc5 28. Rxc5 Bc7 $11) 27... Qa5 28. Rxd8 (28. Qxc5 Qxc5 29. Rxc5 Nf3+ 30. Bxf3 Bxf3 $17) (28. Nhxg7 Qxc3 29. Rxc3 Rf8 $18) 28... Qxd8) 27. Ne6 {[%emt 0:01:05]} (27. Qxc5 Qxc5 28. Rxc5 Bc7 $16) 27... Nf7 {[%emt 0:07:26]} 28. Nxf8 {[%emt 0:06:49]} (28. Rxc6 bxc6 29. Nfxg7 Ng5 $16) 28... Nxd6 {[%emt 0:00:44]} 29. Nxd6 {[%emt 0:00:06] Qc4+ would kill now.} Kxf8 {[%emt 0:01:10]} 30. Nc8 {[%emt 0:00:20]} (30. Qxc5 Qxc5 31. Rxc5 Be7 (31... Bb6 32. Rc2 $16) 32. Bxc6 Bxd6 $11) 30... Qc7 {[%emt 0:04:48]} (30... Qa5 $142 31. Nxa7 (31. Qxc5+ Qxc5 32. Rxc5 Ra8 $17) 31... Qxa7 32. Bxc6 (32. Qxc5+ Qxc5 33. Rxc5 Bd7 $18) 32... bxc6 33. Qxc5+ Qxc5 34. Rxc5 f5 35. Rxc6 (35. Rxf5+ Bf6 $18) 35... Bf6) 31. Nxa7 {[%emt 0:00:49]} Bxg2 {[%emt 0:00:07]} 32. Kxg2 {[%emt 0:00:03]} b6 {[%emt 0:00:08]} 33. Qd3 {[%emt 0:00:03]} Be7 {[%emt 0:00:24]} 34. Nb5 {[%emt 0:00:05]} Qc6+ {[%emt 0:00:04]} 35. Kg1 {[%emt 0:00:02]} h5 {[%emt 0:00:23][%cal Bh7h5,Bh5h4][%mdl 32]} 36. h4 {[%emt 0:00:13]} g5 {[%emt 0:00:17]} 37. hxg5 {[%emt 0:00:18][%cal Od3h7] White threatens Qh7! and mate.} fxg5 {[%emt 0:01:01]} 38. Re1 {[%emt 0:00:10][%cal Od3h7] Threatening mate with Qh7!} Qf6 {[%emt 0:00:49]} 39. Nc7 {[%emt 0:00:11] White mates.} h4 {[%emt 0:00:34]} 40. Nd5 {[%emt 0:00:08][%csl LRe7,LRf6]} c4 {[%emt 0:00:17]} 41. Qh7 {[%emt 0:40:30]} Bc5 {[%emt 0:40:21]} 42. Nxf6 {[%emt 0:00:09] Weighted Error Value: White=0.10 (very precise) /Black=0.68.  Mistake:       	---       	Black=7      Inaccurate:     	White=2     	Black=1      OK:         	White=11    	Black=12     Best:        	White=2     	---        Strong:       	White=2     	---} 1-0

[Event "Fagernes Chess GM-Swiss 2024"]
[Site "Fagernes"]
[Date "2024.03.27"]
[Round "5.35"]
[White "Melaa, Sondre"]
[Black "Sian, Shadi"]
[Result "1/2-1/2"]
[ECO "B90"]
[WhiteElo "2285"]
[BlackElo "2076"]
[Annotator "RC"]
[PlyCount "50"]
[EventDate "2024.03.25"]
[EventType "swiss"]
[EventCountry "NOR"]
[SourceTitle "playchess.com"]
[Source "ChessBase"]
[SourceQuality "1"]
[TimeControl "40/6000+30:2400+30"]

1. e4 {[%emt 0:07:19]} c5 {[%emt 0:00:05]} 2. Nf3 {[%emt 0:00:11]} d6 {[%emt 0:00:05]} 3. d4 {[%emt 0:00:09]} cxd4 {[%emt 0:00:04]} 4. Nxd4 {[%emt 0:00:07]} Nf6 {[%emt 0:00:04]} 5. Nc3 {[%emt 0:00:08]} a6 {[%emt 0:00:06]} 6. h3 {[%emt 0:00:23]} e5 {[%emt 0:00:05]} 7. Nf3 {[%emt 0:00:05]} Qc7 {[%emt 0:01:17]} 8. g4 {[%emt 0:04:28]} h6 {[%emt 0:10:15]} 9. g5 {[%emt 0:13:19]} hxg5 {[%emt 0:02:01]} 10. Nxg5 {[%emt 0:00:11]} Nbd7 {[%emt 0:08:12]} 11. a4 {[%emt 0:04:33]} Nc5 {[%emt 0:06:23]} 12. Bc4 {[%emt 0:09:59]} Be6 {[%emt 0:05:23]} 13. Nxe6 {[%emt 0:02:16]} fxe6 {[%emt 0:10:58]} 14. Be3 {[%emt 0:15:27]} Ncxe4 {[%emt 0:02:34]} 15. Nxe4 {[%emt 0:00:34]} Qxc4 {[%emt 0:00:23]} 16. Nxd6+ {[%emt 0:00:14]} Bxd6 {[%emt 0:00:04]} 17. Qxd6 {[%emt 0:00:07]} Qd5 {[%emt 0:00:05]} 18. Qxd5 {[%emt 0:00:18]} exd5 {[%emt 0:00:01]} 19. f4 {[%emt 0:03:26]} exf4 {[%emt 0:01:01]} 20. Bxf4 {[%emt 0:00:10]} Rc8 {[%emt 0:05:14]} 21. Rh2 {[%emt 0:18:41]} Rc4 {[%emt 0:04:31]} 22. Bg5 {[%emt 0:00:37]} Ne4 {[%emt 0:13:33]} 23. Be3 {[%emt 0:02:54]} Nf6 {[%emt 0:00:42]} 24. Bg5 {[%emt 0:05:16]} Ne4 {[%emt 0:00:21]} 25. Be3 {[%emt 0:00:27]} Nf6 {[%emt 0:01:27]} 1/2-1/2

[Event "Fagernes Chess GM-Swiss 2024"]
[Site "Fagernes"]
[Date "2024.03.27"]
[Round "5.36"]
[White "Daakshin Arun"]
[Black "Amundsen, Ask"]
[Result "1-0"]
[ECO "D20"]
[WhiteElo "2283"]
[BlackElo "2069"]
[Annotator "RC"]
[PlyCount "73"]
[EventDate "2024.03.25"]
[EventType "swiss"]
[EventCountry "NOR"]
[SourceTitle "playchess.com"]
[Source "ChessBase"]
[SourceQuality "1"]
[TimeControl "40/6000+30:2400+30"]

1. d4 {[%emt 0:00:03]} d5 {[%emt 0:00:17]} 2. c4 {[%emt 0:00:16]} dxc4 {[%emt 0:00:09]} 3. e3 {[%emt 0:00:10]} e5 {[%emt 0:00:14]} 4. Bxc4 {[%emt 0:00:52]} exd4 {[%emt 0:00:10]} 5. exd4 {[%emt 0:00:05]} Nf6 {[%emt 0:00:15]} 6. Qb3 {[%emt 0:03:37]} Qe7+ {[%emt 0:00:41]} 7. Ne2 {[%emt 0:00:24]} Qb4+ {[%emt 0:00:09]} 8. Nbc3 {[%emt 0:00:07]} Qxb3 {[%emt 0:00:26]} 9. Bxb3 {[%emt 0:00:07]} Be6 {[%emt 0:00:45]} 10. d5 {[%emt 0:07:42]} Bd7 {[%emt 0:00:14]} 11. O-O {[%emt 0:03:49]} Bd6 {[%emt 0:01:26]} 12. Nd4 {[%emt 0:02:25]} O-O {[%emt 0:02:04]} 13. Ndb5 {[%emt 0:02:21]} Ne8 {[%emt 0:01:02]} 14. Nxd6 {[%emt 0:04:36]} Nxd6 {[%emt 0:00:13]} 15. Bf4 {[%emt 0:01:54]} Na6 {[%emt 0:06:50]} 16. Rfe1 {[%emt 0:05:18]} Nc5 {[%emt 0:05:56]} 17. Bc2 {[%emt 0:01:00]} a5 {[%emt 0:12:24]} 18. Rac1 {[%emt 0:04:26]} Rfe8 {[%emt 0:02:55]} 19. Ne2 {[%emt 0:05:50]} Bb5 {[%emt 0:05:00]} 20. Nd4 {[%emt 0:01:54]} Bd3 {[%emt 0:00:40]} 21. Red1 {[%emt 0:13:57]} Bxc2 {[%emt 0:04:25]} 22. Nxc2 {[%emt 0:02:48]} Na4 {[%emt 0:21:17]} 23. Ne3 {[%emt 0:08:36]} Nxb2 {[%emt 0:20:13]} 24. Rd4 {[%emt 0:03:51]} Ra6 {[%emt 0:04:07]} 25. h3 {[%emt 0:09:03]} Nb5 {[%emt 0:09:39]} 26. Rd2 {[%emt 0:00:47]} Na4 {[%emt 0:00:14]} 27. Rc4 {[%emt 0:01:52]} Nac3 {[%emt 0:04:46]} 28. a4 {[%emt 0:02:00]} Nxa4 {[%emt 0:03:52]} 29. Rxa4 {[%emt 0:00:33]} Nc3 {[%emt 0:00:06]} 30. Rc4 {[%emt 0:01:09]} Ne4 {[%emt 0:00:25]} 31. Rxe4 {[%emt 0:00:37]} Rxe4 {[%emt 0:00:10]} 32. Bxc7 {[%emt 0:00:04]} Re8 {[%emt 0:01:36]} 33. d6 {[%emt 0:00:05]} Raa8 {[%emt 0:00:23]} 34. d7 {[%emt 0:00:04]} Red8 {[%emt 0:00:16]} 35. Bxd8 {[%emt 0:00:04]} Rxd8 {[%emt 0:00:07]} 36. Rc2 {[%emt 0:00:12]} Kf8 {[%emt 0:00:30]} 37. Nd5 {[%emt 0:00:04]} 1-0

[Event "Fagernes Chess GM-Swiss 2024"]
[Site "Fagernes"]
[Date "2024.03.27"]
[Round "5.37"]
[White "Moreby, James"]
[Black "Thangavel, Gokul"]
[Result "1/2-1/2"]
[ECO "A28"]
[WhiteElo "2260"]
[BlackElo "1990"]
[Annotator "RC"]
[PlyCount "80"]
[EventDate "2024.03.25"]
[EventType "swiss"]
[EventCountry "NOR"]
[SourceTitle "playchess.com"]
[Source "ChessBase"]
[SourceQuality "1"]
[TimeControl "40/6000+30:2400+30"]

1. c4 {[%emt 0:03:45]} Nf6 {[%emt 0:00:21]} 2. Nc3 {[%emt 0:00:17]} e5 {[%emt 0:00:11]} 3. Nf3 {[%emt 0:00:07]} Nc6 {[%emt 0:00:04]} 4. e4 {[%emt 0:02:48]} Bb4 {[%emt 0:00:09]} 5. d3 {[%emt 0:00:05]} d6 {[%emt 0:00:03]} 6. a3 {[%emt 0:03:45]} Bc5 {[%emt 0:00:04]} 7. b4 {[%emt 0:00:18]} Bb6 {[%emt 0:00:03]} 8. Na4 {[%emt 0:00:08]} Bg4 {[%emt 0:01:17]} 9. Nxb6 {[%emt 0:01:07]} axb6 {[%emt 0:00:06]} 10. Bb2 {[%emt 0:00:28]} Nd4 {[%emt 0:05:59]} 11. Be2 {[%emt 0:03:52]} Bxf3 {[%emt 0:02:00]} 12. Bxf3 {[%emt 0:00:09]} Ne6 {[%emt 0:00:08]} 13. g3 {[%emt 0:01:26]} Nd7 {[%emt 0:12:51]} 14. Bg2 {[%emt 0:05:36]} O-O {[%emt 0:00:35]} 15. O-O {[%emt 0:00:12]} Qg5 {[%emt 0:18:58]} 16. Bc1 {[%emt 0:04:27]} Qe7 {[%emt 0:00:26]} 17. Bb2 {[%emt 0:07:11]} c6 {[%emt 0:09:59]} 18. f4 {[%emt 0:00:53]} exf4 {[%emt 0:00:57]} 19. gxf4 {[%emt 0:00:21]} Qh4 {[%emt 0:07:40]} 20. Qd2 {[%emt 0:04:35]} f5 {[%emt 0:01:13]} 21. Rae1 {[%emt 0:06:32]} Rae8 {[%emt 0:04:58]} 22. e5 {[%emt 0:03:02]} dxe5 {[%emt 0:04:10]} 23. fxe5 {[%emt 0:00:38]} f4 {[%emt 0:09:16]} 24. Qf2 {[%emt 0:21:55]} Qg4 {[%emt 0:15:11]} 25. Qf3 {[%emt 0:09:07]} Qg6 {[%emt 0:06:10]} 26. Qd1 {[%emt 0:16:43]} Rf5 {[%emt 0:03:42]} 27. Kh1 {[%emt 0:01:03]} Rh5 {[%emt 0:00:44]} 28. Bf3 {[%emt 0:03:57]} Rh3 {[%emt 0:00:54]} 29. Qe2 {[%emt 0:04:02]} Ng5 {[%emt 0:00:22]} 30. d4 {[%emt 0:00:51]} Nf6 {[%emt 0:01:09]} 31. Qg2 {[%emt 0:02:26]} Nh5 {[%emt 0:01:41]} 32. Bxh5 {[%emt 0:03:20]} Qxh5 {[%emt 0:00:03]} 33. Rxf4 {[%emt 0:00:45]} Nf3 {[%emt 0:00:07]} 34. Rxf3 {[%emt 0:00:17]} Rxf3 {[%emt 0:01:54]} 35. d5 {[%emt 0:01:05]} cxd5 {[%emt 0:02:23]} 36. cxd5 {[%emt 0:00:01]} Qf5 {[%emt 0:01:07]} 37. Rg1 {[%emt 0:01:08]} g6 {[%emt 0:00:45]} 38. d6 {[%emt 0:00:01]} Rf2 {[%emt 0:00:55]} 39. Qd5+ {[%emt 0:01:04]} Qf7 {[%emt 0:00:17]} 40. Qg2 {[%emt 0:00:12]} Qf5 1/2-1/2

[Event "Fagernes Chess GM-Swiss 2024"]
[Site "Fagernes"]
[Date "2024.03.27"]
[Round "5.38"]
[White "Lindh, Fredrik"]
[Black "Okuno Okuno, Rion"]
[Result "1-0"]
[ECO "B90"]
[WhiteElo "2256"]
[BlackElo "1981"]
[Annotator "RC"]
[PlyCount "71"]
[EventDate "2024.03.25"]
[EventType "swiss"]
[EventCountry "NOR"]
[SourceTitle "playchess.com"]
[Source "ChessBase"]
[SourceQuality "1"]
[TimeControl "40/6000+30:2400+30"]

1. e4 {[%emt 0:00:03]} c5 {[%emt 0:00:10]} 2. Nf3 {[%emt 0:00:05]} d6 {[%emt 0:00:05]} 3. d4 {[%emt 0:00:04]} cxd4 {[%emt 0:00:04]} 4. Nxd4 {[%emt 0:00:04]} Nf6 {[%emt 0:00:10]} 5. Nc3 {[%emt 0:00:05]} a6 {[%emt 0:00:04]} 6. Be3 {[%emt 0:00:05]} e5 {[%emt 0:00:04]} 7. Nb3 {[%emt 0:00:06]} Be7 {[%emt 0:00:05]} 8. f3 {[%emt 0:00:10]} Be6 {[%emt 0:00:06]} 9. Qd2 {[%emt 0:00:09]} h5 {[%emt 0:00:27]} 10. Be2 {[%emt 0:00:07]} Nbd7 {[%emt 0:00:08]} 11. a4 {[%emt 0:00:06]} O-O {[%emt 0:07:44]} 12. O-O {[%emt 0:03:09]} Qc7 {[%emt 0:08:36]} 13. a5 {[%emt 0:02:14]} b5 {[%emt 0:08:01]} 14. axb6 {[%emt 0:30:13]} Nxb6 {[%emt 0:00:26]} 15. Rxa6 {[%emt 0:03:26]} Rxa6 {[%emt 0:10:30]} 16. Bxa6 {[%emt 0:00:55]} Ra8 {[%emt 0:01:35]} 17. Bd3 {[%emt 0:14:24]} d5 {[%emt 0:05:41]} 18. exd5 {[%emt 0:02:21]} Nfxd5 {[%emt 0:02:57]} 19. Nb5 {[%emt 0:17:04]} Qc6 {[%emt 0:02:21]} 20. Bf2 {[%emt 0:09:10]} Nc4 {[%emt 0:04:11]} 21. Bxc4 {[%emt 0:04:40]} Qxc4 {[%emt 0:00:20]} 22. Na3 {[%emt 0:00:12]} Bxa3 {[%emt 0:01:45]} 23. bxa3 {[%emt 0:03:23]} Rxa3 {[%emt 0:01:09]} 24. Nc5 {[%emt 0:04:18]} Nf4 {[%emt 0:10:22]} 25. Re1 {[%emt 0:01:02]} Rc3 {[%emt 0:04:32]} 26. Re4 {[%emt 0:05:04]} Rxc2 {[%emt 0:15:34]} 27. Qd8+ {[%emt 0:00:05]} Kh7 {[%emt 0:00:03]} 28. Rxc4 {[%emt 0:00:05]} Bxc4 {[%emt 0:00:06]} 29. h4 {[%emt 0:01:44]} Rc1+ {[%emt 0:02:37]} 30. Kh2 {[%emt 0:00:05]} Rc2 {[%emt 0:01:57]} 31. Ne4 {[%emt 0:01:11]} Bd5 {[%emt 0:00:00]} 32. Ng5+ {[%emt 0:01:27]} Kg6 {[%emt 0:00:07]} 33. Qb6+ {[%emt 0:00:54]} f6 {[%emt 0:00:11]} 34. Qb1 {[%emt 0:01:01]} Bb3 {[%emt 0:00:15]} 35. Qxb3 {[%emt 0:00:38]} Rxf2 {[%emt 0:00:10]} 36. Qb1+ {[%emt 0:00:04]} 1-0

[Event "Fagernes Chess GM-Swiss 2024"]
[Site "Fagernes"]
[Date "2024.03.27"]
[Round "5.39"]
[White "Andersen, Morten"]
[Black "Gasland, Lukas Dominik"]
[Result "1-0"]
[ECO "A62"]
[WhiteElo "2178"]
[BlackElo "1985"]
[Annotator "RC"]
[PlyCount "89"]
[EventDate "2024.03.25"]
[EventType "swiss"]
[EventCountry "NOR"]
[SourceTitle "playchess.com"]
[Source "ChessBase"]
[SourceQuality "1"]
[TimeControl "40/6000+30:2400+30"]

1. d4 {[%emt 0:00:03]} Nf6 {[%emt 0:00:24]} 2. c4 {[%emt 0:02:37]} e6 {[%emt 0:01:29]} 3. g3 {[%emt 0:00:12]} c5 {[%emt 0:00:09]} 4. d5 {[%emt 0:01:44]} exd5 {[%emt 0:00:07]} 5. cxd5 {[%emt 0:00:10]} d6 {[%emt 0:00:05]} 6. Nc3 {[%emt 0:02:02]} g6 {[%emt 0:01:20]} 7. Nf3 {[%emt 0:01:53]} Bg7 {[%emt 0:00:37]} 8. Bg2 {[%emt 0:00:49]} O-O {[%emt 0:03:45]} 9. O-O {[%emt 0:00:17]} Na6 {[%emt 0:03:30]} 10. Nd2 {[%emt 0:12:09]} Nc7 {[%emt 0:02:42]} 11. a4 {[%emt 0:01:47]} b6 {[%emt 0:02:53]} 12. Nc4 {[%emt 0:05:06]} Ba6 {[%emt 0:02:53]} 13. Na3 {[%emt 0:09:14]} Qd7 {[%emt 0:02:50]} 14. Bf4 {[%emt 0:09:08]} Nh5 {[%emt 0:05:09]} 15. Bg5 {[%emt 0:01:52]} Rfe8 {[%emt 0:07:14]} 16. Bf3 {[%emt 0:08:03]} Re5 {[%emt 0:14:26]} 17. Qd2 {[%emt 0:05:41]} f6 {[%emt 0:06:11]} 18. Be3 {[%emt 0:06:14]} Rae8 {[%emt 0:01:37]} 19. g4 {[%emt 0:02:22]} Rxe3 {[%emt 0:10:14]} 20. fxe3 {[%emt 0:00:21]} Bh6 {[%emt 0:00:09]} 21. Ne4 {[%emt 0:06:05]} f5 {[%emt 0:02:57]} 22. gxh5 {[%emt 0:04:23]} fxe4 {[%emt 0:00:46]} 23. Bg2 {[%emt 0:00:39]} Re5 {[%emt 0:02:09]} 24. hxg6 {[%emt 0:05:41]} Nxd5 {[%emt 0:03:56]} 25. gxh7+ {[%emt 0:02:41]} Qxh7 {[%emt 0:01:38]} 26. Nc2 {[%emt 0:05:04]} Qg6 {[%emt 0:09:45]} 27. Kh1 {[%emt 0:01:11]} Kh8 {[%emt 0:01:43]} 28. a5 {[%emt 0:01:47]} Rh5 {[%emt 0:01:51]} 29. Qe1 {[%emt 0:02:54]} b5 {[%emt 0:00:49]} 30. Qf2 {[%emt 0:00:57]} b4 {[%emt 0:00:57]} 31. b3 {[%emt 0:01:04]} Bg7 {[%emt 0:00:21]} 32. Rae1 {[%emt 0:01:55]} Nf6 {[%emt 0:00:31]} 33. Qf4 {[%emt 0:01:08]} Rg5 {[%emt 0:07:10]} 34. Rg1 {[%emt 0:01:28]} Bh6 {[%emt 0:04:01]} 35. Qxd6 {[%emt 0:00:40]} Ng4 {[%emt 0:00:46]} 36. Qg3 {[%emt 0:03:45]} Bg7 {[%emt 0:05:26]} 37. Bh3 {[%emt 0:00:47]} Bc8 {[%emt 0:00:56]} 38. Qh4+ {[%emt 0:00:51]} Rh5 {[%emt 0:00:42]} 39. Qd8+ {[%emt 0:00:50]} Kh7 {[%emt 0:00:41]} 40. Bxg4 {[%emt 0:02:02]} Bxg4 {[%emt 0:01:37]} 41. Rg2 {[%emt 0:05:13]} Qh6 {[%emt 0:03:38]} 42. Qc7 {[%emt 0:11:23]} Bh3 {[%emt 0:01:21]} 43. Rgg1 {[%emt 0:02:58]} Be6 {[%emt 0:00:46]} 44. Rd1 {[%emt 0:03:07]} Bxb3 {[%emt 0:02:08]} 45. Rxg7+ {[%emt 0:01:04]} 1-0

[Event "Fagernes Chess GM-Swiss 2024"]
[Site "Fagernes"]
[Date "2024.03.27"]
[Round "5.40"]
[White "Oksendal, Martin"]
[Black "Gandrud, Vegar Koi"]
[Result "1/2-1/2"]
[ECO "B94"]
[WhiteElo "2086"]
[BlackElo "2293"]
[Annotator "RC"]
[PlyCount "105"]
[EventDate "2024.03.25"]
[EventType "swiss"]
[EventCountry "NOR"]
[SourceTitle "playchess.com"]
[Source "ChessBase"]
[SourceQuality "1"]
[TimeControl "40/6000+30:2400+30"]

1. e4 {[%emt 0:00:04]} c5 {[%emt 0:00:23]} 2. Nf3 {[%emt 0:00:18]} d6 {[%emt 0:00:07]} 3. d4 {[%emt 0:00:10]} cxd4 {[%emt 0:00:06]} 4. Nxd4 {[%emt 0:00:06]} Nf6 {[%emt 0:00:04]} 5. Nc3 {[%emt 0:00:04]} a6 {[%emt 0:00:03]} 6. Bg5 {[%emt 0:00:55]} Nbd7 {[%emt 0:00:07]} 7. Qe2 {[%emt 0:00:18]} h6 {[%emt 0:02:11]} 8. Bh4 {[%emt 0:00:43]} g6 {[%emt 0:00:53]} 9. f4 {[%emt 0:00:20]} e5 {[%emt 0:01:16]} 10. fxe5 {[%emt 0:01:36]} dxe5 {[%emt 0:00:11]} 11. O-O-O {[%emt 0:04:08]} Be7 {[%emt 0:01:49]} 12. Nb3 {[%emt 0:03:09]} Qc7 {[%emt 0:01:16]} 13. Qf3 {[%emt 0:11:13]} g5 {[%emt 0:07:56]} 14. Bg3 {[%emt 0:12:32]} b5 {[%emt 0:22:35]} 15. Bd3 {[%emt 0:15:04]} Bb7 {[%emt 0:21:19]} 16. Rhf1 {[%emt 0:05:38]} O-O-O {[%emt 0:03:22]} 17. Qe3 {[%emt 0:10:15]} Rhf8 {[%emt 0:25:48]} 18. a4 {[%emt 0:09:36]} b4 {[%emt 0:05:00]} 19. Nd5 {[%emt 0:02:12]} Nxd5 {[%emt 0:00:27]} 20. exd5 {[%emt 0:00:08]} Nc5 {[%emt 0:01:23]} 21. Nxc5 {[%emt 0:03:58]} Bxc5 {[%emt 0:00:08]} 22. Qxe5 {[%emt 0:02:13]} Bd6 {[%emt 0:00:43]} 23. Qf5+ {[%emt 0:00:58]} Kb8 {[%emt 0:00:16]} 24. Bxd6 {[%emt 0:02:43]} Qxd6 {[%emt 0:02:54]} 25. Qf6 {[%emt 0:03:11]} a5 {[%emt 0:01:13]} 26. Qxd6+ {[%emt 0:10:34]} Rxd6 {[%emt 0:00:02]} 27. Be4 {[%emt 0:02:06]} f5 {[%emt 0:00:50]} 28. Rxf5 {[%emt 0:00:54]} Rxf5 {[%emt 0:00:08]} 29. Bxf5 {[%emt 0:00:03]} Rxd5 {[%emt 0:00:06]} 30. Rxd5 {[%emt 0:04:54]} Bxd5 {[%emt 0:00:03]} 31. g3 {[%emt 0:00:42]} Bc6 {[%emt 0:00:14]} 32. b3 {[%emt 0:00:13]} Kc7 {[%emt 0:00:13]} 33. Kd2 {[%emt 0:00:36]} Kd6 {[%emt 0:00:11]} 34. Kd3 {[%emt 0:02:09]} Kc5 {[%emt 0:00:54]} 35. Ke3 {[%emt 0:01:15]} Bd5 {[%emt 0:00:56]} 36. Bd3 {[%emt 0:00:36]} Bc6 {[%emt 0:00:56]} 37. Bg6 {[%emt 0:01:13]} Bd5 {[%emt 0:00:58]} 38. Be8 {[%emt 0:00:37]} Bg8 {[%emt 0:01:44]} 39. Bg6 {[%emt 0:00:17]} Bd5 {[%emt 0:00:02]} 40. Bh7 {[%emt 0:00:30]} Bc6 {[%emt 0:00:27]} 41. g4 {[%emt 0:21:24]} Bd5 {[%emt 0:00:48]} 42. Be4 {[%emt 0:01:20]} Bf7 {[%emt 0:00:28]} 43. Bh7 {[%emt 0:04:36]} Bd5 {[%emt 0:00:01]} 44. Bf5 {[%emt 0:00:14]} Bc6 {[%emt 0:00:16]} 45. Kd3 {[%emt 0:03:25]} Bd5 {[%emt 0:00:08]} 46. Be4 {[%emt 0:03:24]} Bf7 {[%emt 0:00:25]} 47. Ke3 {[%emt 0:00:37]} Bg8 {[%emt 0:00:13]} 48. Ba8 {[%emt 0:01:05]} Bh7 {[%emt 0:00:10]} 49. Be4 {[%emt 0:00:04]} Bg8 {[%emt 0:00:04]} 50. Kd3 {[%emt 0:00:26]} Bf7 {[%emt 0:00:18]} 51. Ke3 {[%emt 0:01:02]} Bg8 {[%emt 0:01:11]} 52. h3 {[%emt 0:00:23]} Bf7 {[%emt 0:00:14]} 53. Kd3 {[%emt 0:00:18]} 1/2-1/2